[Event "Championnat d'Europe Rapide"]
[Date "2024.12.08"]
[White "Tudor, Henry Edward"]
[Black "Baidetskyi, Valentin"]
[WhiteElo "2375"]
[BlackElo "2519"]
[Round "7.29"]
[Result "1-0"]
[TimeControl "900+10"]

1. d4 {[%emt 00:00:04] [%clk 00:15:13]} Nf6 {[%emt 00:00:05] [%clk 00:15:18]} 2.
c4 {[%emt 00:00:02] [%clk 00:15:20]} e6 {[%emt 00:00:02] [%clk 00:15:27]} 3. Nc3
{[%emt 00:00:03] [%clk 00:15:27]} Bb4 {[%emt 00:00:02] [%clk 00:15:35]} 4. e3
{[%emt 00:00:04] [%clk 00:15:33]} O-O {[%emt 00:00:02] [%clk 00:15:43]} 5. Bd3
{[%emt 00:00:02] [%clk 00:15:41]} Re8 {[%emt 00:00:01] [%clk 00:15:52]} 6. Nge2
{[%emt 00:00:02] [%clk 00:15:48]} d5 {[%emt 00:00:02] [%clk 00:16:01]} 7. O-O
{[%emt 00:00:54] [%clk 00:15:04]} h6 {[%emt 00:00:02] [%clk 00:16:09]} 8. e4
{[%emt 00:01:29] [%clk 00:13:45]} dxe4 {[%emt 00:00:02] [%clk 00:16:17]} 9. Nxe4
{[%emt 00:00:03] [%clk 00:13:53]} Nxe4 {[%emt 00:00:08] [%clk 00:16:19]} 10.
Bxe4 {[%emt 00:00:02] [%clk 00:14:01]} Nd7 {[%emt 00:00:05] [%clk 00:16:24]} 11.
Qc2 {[%emt 00:01:47] [%clk 00:12:24]} e5 {[%emt 00:01:13] [%clk 00:15:21]} 12.
d5 {[%emt 00:00:22] [%clk 00:12:12]} Nf6 {[%emt 00:00:02] [%clk 00:15:29]} 13.
Bf5 {[%emt 00:00:03] [%clk 00:12:19]} e4 {[%emt 00:00:08] [%clk 00:15:30]} 14.
Bxc8 {[%emt 00:00:41] [%clk 00:11:49]} Qxc8 {[%emt 00:00:27] [%clk 00:15:13]}
15. b3 {[%emt 00:00:32] [%clk 00:11:26]} Bd6 {[%emt 00:02:44] [%clk 00:12:39]}
16. Bb2 {[%emt 00:00:26] [%clk 00:11:10]} Ng4 {[%emt 00:03:07] [%clk 00:09:43]}
17. h3 {[%emt 00:02:08] [%clk 00:09:12]} Nh2 {[%emt 00:00:01] [%clk 00:09:51]}
18. Rfb1 {[%emt 00:00:01] [%clk 00:09:21]} Nf3+ {[%emt 00:01:04] [%clk
00:08:57]} 19. gxf3 {[%emt 00:00:31] [%clk 00:09:00]} Qxh3 {[%emt 00:00:06]
[%clk 00:09:00]} 20. f4 {[%emt 00:00:57] [%clk 00:08:13]} Qg4+ {[%emt 00:01:02]
[%clk 00:08:09]} 21. Ng3 {[%emt 00:00:46] [%clk 00:07:37]} Bc5 {[%emt 00:02:36]
[%clk 00:05:43]} 22. Qc3 {[%emt 00:04:47] [%clk 00:03:00]} a5 {[%emt 00:00:18]
[%clk 00:05:35]} 23. Kg2 {[%emt 00:00:42] [%clk 00:02:28]} Ra6 {[%emt 00:00:24]
[%clk 00:05:21]} 24. f5 {[%emt 00:01:36] [%clk 00:01:02]} Rf6 {[%emt 00:01:07]
[%clk 00:04:23]} 25. f3 {[%emt 00:00:47] [%clk 00:00:26]} Qg5 {[%emt 00:00:01]
[%clk 00:04:32]} 26. fxe4 {[%emt 00:00:22] [%clk 00:00:14]} Rxe4 {[%emt
00:00:07] [%clk 00:04:35]} 27. Re1 {[%emt 00:00:09] [%clk 00:00:14]} Rf4 {[%emt
00:01:29] [%clk 00:03:17]} 28. Rf1 {[%emt 00:00:13] [%clk 00:00:11]} R6xf5
{[%emt 00:00:20] [%clk 00:03:07]} 29. Rxf4 {[%emt 00:00:06] [%clk 00:00:15]}
Rxf4 {[%emt 00:00:01] [%clk 00:03:16]} 30. Rf1 {[%emt 00:00:09] [%clk 00:00:16]}
Rg4 {[%emt 00:02:40] [%clk 00:00:46]} 31. Bc1 {[%emt 00:00:01] [%clk 00:00:25]}
Qg6 {[%emt 00:00:04] [%clk 00:00:52]} 32. Rf4 {[%clk 00:00:34]} Bd6 {[%emt
00:00:19] [%clk 00:00:43]} 33. Rxg4 {[%emt 00:00:02] [%clk 00:00:42]} Qxg4
{[%clk 00:00:52]} 34. Qf3 {[%emt 00:00:13] [%clk 00:00:39]} Qg6 {[%emt 00:00:04]
[%clk 00:00:59]} 35. Bf4 {[%emt 00:00:33] [%clk 00:00:15]} Qb1 {[%emt 00:00:27]
[%clk 00:00:43]} 36. a4 {[%emt 00:00:11] [%clk 00:00:14]} Qb2+ {[%emt 00:00:10]
[%clk 00:00:43]} 37. Kh3 {[%emt 00:00:07] [%clk 00:00:17]} Qf6 {[%emt 00:00:01]
[%clk 00:00:51]} 38. Nh5 {[%emt 00:00:10] [%clk 00:00:17]} Qf5+ {[%emt 00:00:18]
[%clk 00:00:44]} 39. Kg2 {[%emt 00:00:11] [%clk 00:00:16]} Qc2+ {[%emt 00:00:16]
[%clk 00:00:38]} 40. Kh3 {[%emt 00:00:02] [%clk 00:00:24]} Qf5+ {[%clk
00:00:47]} 41. Qg4 {[%emt 00:00:21] [%clk 00:00:13]} Qd3+ {[%emt 00:00:08] [%clk
00:00:49]} 42. Ng3 {[%emt 00:00:12] [%clk 00:00:11]} f5 {[%emt 00:00:16] [%clk
00:00:43]} 43. Qe2 {[%emt 00:00:08] [%clk 00:00:14]} Qxb3 {[%emt 00:00:19] [%clk
00:00:35]} 44. Qe6+ {[%emt 00:00:03] [%clk 00:00:20]} Kh8 {[%emt 00:00:02] [%clk
00:00:42]} 45. Qc8+ {[%emt 00:00:03] [%clk 00:00:27]} Kh7 {[%emt 00:00:01] [%clk
00:00:51]} 46. Qxf5+ {[%clk 00:00:36]} Kh8 {[%clk 00:01:01]} 47. Qc8+ {[%emt
00:00:11] [%clk 00:00:35]} Kh7 {[%clk 00:01:10]} 48. Qf5+ {[%emt 00:00:01] [%clk
00:00:44]} Kh8 {[%clk 00:01:19]} 49. Bxd6 {[%emt 00:00:04] [%clk 00:00:50]} cxd6
{[%clk 00:01:28]} 50. Qc8+ {[%emt 00:00:03] [%clk 00:00:56]} Kh7 {[%emt
00:00:02] [%clk 00:01:36]} 51. Qf5+ {[%emt 00:00:01] [%clk 00:01:05]} Kh8 {[%emt
00:00:01] [%clk 00:01:45]} 52. c5 {[%emt 00:00:39] [%clk 00:00:36]} dxc5 {[%emt
00:00:15] [%clk 00:01:39]} 53. d6 {[%emt 00:00:01] [%clk 00:00:45]} 1-0

[Site "Europe Echecs"]

[Event "Championnat d'Europe Rapide"]
[Date "2024.12.08"]
[White "Motylev, Alexander"]
[Black "Perunovic, Miodrag"]
[WhiteElo "2596"]
[BlackElo "2357"]
[Round "7.30"]
[Result "1-0"]
[TimeControl "900+10"]

1. d4 {[%emt 00:00:08] [%clk 00:15:11]} Nf6 {[%emt 00:00:04] [%clk 00:15:17]} 2.
g3 {[%emt 00:00:02] [%clk 00:15:19]} e6 {[%emt 00:00:16] [%clk 00:15:10]} 3. Bg2
{[%emt 00:00:03] [%clk 00:15:26]} d5 {[%emt 00:00:02] [%clk 00:15:19]} 4. Nf3
{[%emt 00:00:01] [%clk 00:15:34]} Be7 {[%emt 00:00:07] [%clk 00:15:22]} 5. c4
{[%emt 00:00:05] [%clk 00:15:39]} O-O {[%emt 00:00:55] [%clk 00:14:37]} 6. O-O
{[%emt 00:00:08] [%clk 00:15:42]} Nbd7 {[%emt 00:00:03] [%clk 00:14:43]} 7. Qc2
{[%emt 00:00:28] [%clk 00:15:24]} c6 {[%emt 00:00:02] [%clk 00:14:52]} 8. Nbd2
{[%emt 00:00:12] [%clk 00:15:22]} b6 {[%emt 00:00:02] [%clk 00:15:00]} 9. e4
{[%emt 00:00:36] [%clk 00:14:56]} Bb7 {[%emt 00:00:03] [%clk 00:15:07]} 10. e5
{[%emt 00:00:40] [%clk 00:14:26]} Ne8 {[%emt 00:00:02] [%clk 00:15:15]} 11. cxd5
{[%emt 00:00:11] [%clk 00:14:25]} exd5 {[%emt 00:00:10] [%clk 00:15:15]} 12. Re1
{[%emt 00:00:27] [%clk 00:14:08]} Nc7 {[%emt 00:00:06] [%clk 00:15:19]} 13. Nf1
{[%emt 00:00:11] [%clk 00:14:08]} Ne6 {[%emt 00:00:07] [%clk 00:15:22]} 14. Ne3
{[%emt 00:00:10] [%clk 00:14:07]} c5 {[%emt 00:00:11] [%clk 00:15:21]} 15. Nf5
{[%emt 00:00:59] [%clk 00:13:19]} Rc8 {[%emt 00:00:36] [%clk 00:14:55]} 16. Qd1
{[%emt 00:00:55] [%clk 00:12:33]} Re8 {[%emt 00:02:23] [%clk 00:12:41]} 17. a3
{[%emt 00:01:32] [%clk 00:11:11]} Bf8 {[%emt 00:00:22] [%clk 00:12:29]} 18. h4
{[%emt 00:01:57] [%clk 00:09:24]} cxd4 {[%emt 00:01:19] [%clk 00:11:21]} 19. b4
{[%emt 00:00:28] [%clk 00:09:06]} f6 {[%emt 00:02:17] [%clk 00:09:14]} 20. Bh3
{[%emt 00:03:18] [%clk 00:05:59]} fxe5 {[%emt 00:04:50] [%clk 00:04:34]} 21.
Nxe5 {[%emt 00:00:48] [%clk 00:05:21]} Nxe5 {[%emt 00:00:15] [%clk 00:04:29]}
22. Rxe5 {[%emt 00:00:02] [%clk 00:05:28]} Qf6 {[%emt 00:00:01] [%clk 00:04:38]}
23. Nh6+ {[%emt 00:01:49] [%clk 00:03:49]} gxh6 {[%emt 00:00:22] [%clk
00:04:26]} 24. Bxe6+ {[%emt 00:00:15] [%clk 00:03:43]} Rxe6 {[%emt 00:02:46]
[%clk 00:01:51]} 25. Qg4+ {[%emt 00:00:01] [%clk 00:03:51]} Kh8 {[%emt 00:00:45]
[%clk 00:01:16]} 26. Rxe6 {[%emt 00:00:41] [%clk 00:03:20]} Qf7 {[%emt 00:00:13]
[%clk 00:01:13]} 27. Bb2 {[%emt 00:00:38] [%clk 00:02:52]} Rc4 {[%emt 00:00:01]
[%clk 00:01:22]} 28. Rae1 {[%emt 00:00:58] [%clk 00:02:05]} Qg7 {[%emt 00:00:20]
[%clk 00:01:11]} 29. Qf4 {[%emt 00:00:22] [%clk 00:01:52]} 1-0

[Site "Europe Echecs"]

[Event "Championnat d'Europe Rapide"]
[Date "2024.12.08"]
[White "Krallis, Christos"]
[Black "Pantsulaia, Levan"]
[WhiteElo "2383"]
[BlackElo "2522"]
[Round "7.31"]
[Result "1-0"]
[TimeControl "900+10"]

1. e4 {[%emt 00:00:08] [%clk 00:15:11]} c6 {[%emt 00:00:07] [%clk 00:15:10]} 2.
d4 {[%emt 00:00:27] [%clk 00:14:57]} d5 {[%emt 00:00:03] [%clk 00:15:17]} 3. Nc3
{[%emt 00:00:04] [%clk 00:15:03]} dxe4 {[%emt 00:00:57] [%clk 00:14:31]} 4. Nxe4
{[%emt 00:00:02] [%clk 00:15:10]} Nf6 {[%emt 00:00:24] [%clk 00:14:17]} 5. Nxf6+
{[%emt 00:00:07] [%clk 00:15:13]} exf6 {[%emt 00:00:07] [%clk 00:14:21]} 6. c3
{[%emt 00:00:05] [%clk 00:15:17]} Bd6 {[%emt 00:00:04] [%clk 00:14:27]} 7. Bd3
{[%emt 00:00:06] [%clk 00:15:21]} h5 {[%emt 00:00:58] [%clk 00:13:39]} 8. Ne2
{[%emt 00:01:15] [%clk 00:14:14]} h4 {[%emt 00:00:15] [%clk 00:13:35]} 9. h3
{[%emt 00:00:29] [%clk 00:13:54]} Na6 {[%emt 00:01:29] [%clk 00:12:17]} 10. O-O
{[%emt 00:01:02] [%clk 00:13:00]} Nc7 {[%emt 00:00:26] [%clk 00:12:04]} 11. Nf4
{[%emt 00:00:17] [%clk 00:12:52]} Ne6 {[%emt 00:01:15] [%clk 00:10:59]} 12. Re1
{[%emt 00:00:17] [%clk 00:12:45]} Kf8 {[%emt 00:00:02] [%clk 00:11:08]} 13. Qf3
{[%emt 00:02:26] [%clk 00:10:28]} Ng5 {[%emt 00:00:41] [%clk 00:10:37]} 14. Ng6+
{[%emt 00:00:22] [%clk 00:10:16]} fxg6 {[%emt 00:00:17] [%clk 00:10:30]} 15.
Bxg5 {[%emt 00:00:03] [%clk 00:10:22]} Bf5 {[%emt 00:01:39] [%clk 00:09:01]} 16.
Bxf5 {[%emt 00:01:10] [%clk 00:09:23]} gxf5 {[%emt 00:00:01] [%clk 00:09:10]}
17. Qxf5 {[%emt 00:01:22] [%clk 00:08:10]} Rh5 {[%emt 00:00:54] [%clk 00:08:26]}
18. f4 {[%emt 00:00:06] [%clk 00:08:14]} Be7 {[%emt 00:03:21] [%clk 00:05:16]}
19. Qg4 {[%emt 00:01:32] [%clk 00:06:51]} Rxg5 {[%emt 00:01:19] [%clk 00:04:07]}
20. fxg5 {[%emt 00:00:04] [%clk 00:06:57]} fxg5 {[%clk 00:04:17]} 21. Rf1+
{[%emt 00:00:23] [%clk 00:06:44]} Kg8 {[%emt 00:00:05] [%clk 00:04:22]} 22. Qe6+
{[%emt 00:00:02] [%clk 00:06:51]} Kh8 {[%emt 00:00:19] [%clk 00:04:13]} 23. Rf7
{[%emt 00:00:03] [%clk 00:06:59]} 1-0

[Site "Europe Echecs"]

[Event "Championnat d'Europe Rapide"]
[Date "2024.12.08"]
[White "Gavrilescu, David"]
[Black "Zawadzka, Jolanta"]
[WhiteElo "2549"]
[BlackElo "2331"]
[Round "7.32"]
[Result "1-0"]
[TimeControl "900+10"]

1. e4 {[%emt 00:00:02] [%clk 00:15:18]} c5 {[%emt 00:01:36] [%clk 00:13:40]} 2.
Nf3 {[%emt 00:00:07] [%clk 00:15:24]} e6 {[%emt 00:00:02] [%clk 00:13:48]} 3. d4
{[%emt 00:00:29] [%clk 00:15:05]} cxd4 {[%emt 00:00:03] [%clk 00:13:55]} 4. Nxd4
{[%emt 00:00:03] [%clk 00:15:12]} Nc6 {[%emt 00:00:02] [%clk 00:14:04]} 5. a3
{[%emt 00:00:04] [%clk 00:15:18]} Bc5 {[%emt 00:00:17] [%clk 00:13:57]} 6. Nb3
{[%emt 00:00:13] [%clk 00:15:15]} Bb6 {[%emt 00:00:02] [%clk 00:14:04]} 7. Nc3
{[%emt 00:00:21] [%clk 00:15:04]} Nge7 {[%emt 00:00:03] [%clk 00:14:12]} 8. Bg5
{[%emt 00:00:28] [%clk 00:14:46]} O-O {[%emt 00:00:14] [%clk 00:14:07]} 9. Qd2
{[%emt 00:00:05] [%clk 00:14:52]} f6 {[%emt 00:00:04] [%clk 00:14:14]} 10. Bf4
{[%emt 00:00:31] [%clk 00:14:31]} d5 {[%emt 00:02:21] [%clk 00:12:02]} 11. exd5
{[%emt 00:01:57] [%clk 00:12:44]} Nxd5 {[%emt 00:00:05] [%clk 00:12:07]} 12. Bg3
{[%emt 00:02:59] [%clk 00:09:55]} a5 {[%emt 00:03:24] [%clk 00:08:54]} 13. Na4
{[%emt 00:02:31] [%clk 00:07:35]} Bc7 {[%emt 00:01:51] [%clk 00:07:12]} 14. Rd1
{[%emt 00:00:11] [%clk 00:07:34]} Bxg3 {[%emt 00:02:59] [%clk 00:04:22]} 15.
hxg3 {[%emt 00:00:04] [%clk 00:07:40]} Qc7 {[%emt 00:00:01] [%clk 00:04:31]} 16.
Bd3 {[%emt 00:01:40] [%clk 00:06:09]} g6 {[%emt 00:00:41] [%clk 00:03:59]} 17.
c4 {[%emt 00:02:50] [%clk 00:03:30]} Nde7 {[%emt 00:00:03] [%clk 00:04:05]} 18.
Qc2 {[%emt 00:01:02] [%clk 00:02:39]} Ne5 {[%emt 00:00:33] [%clk 00:03:42]} 19.
Be2 {[%emt 00:00:02] [%clk 00:02:47]} Bd7 {[%emt 00:00:24] [%clk 00:03:28]} 20.
Nac5 {[%emt 00:01:04] [%clk 00:01:54]} a4 {[%emt 00:01:24] [%clk 00:02:13]} 21.
Nxd7 {[%emt 00:00:02] [%clk 00:02:02]} Nxd7 {[%emt 00:00:02] [%clk 00:02:21]}
22. Nd4 {[%emt 00:00:04] [%clk 00:02:08]} Nc5 {[%emt 00:00:07] [%clk 00:02:24]}
23. O-O {[%emt 00:00:08] [%clk 00:02:10]} Rfd8 {[%emt 00:00:24] [%clk 00:02:10]}
24. Bf3 {[%emt 00:00:15] [%clk 00:02:06]} Nc6 {[%emt 00:00:35] [%clk 00:01:44]}
25. Nb5 {[%emt 00:00:39] [%clk 00:01:37]} Qe7 {[%emt 00:00:04] [%clk 00:01:49]}
26. Rfe1 {[%emt 00:00:35] [%clk 00:01:12]} Ne5 {[%emt 00:00:36] [%clk 00:01:23]}
27. Be2 {[%emt 00:00:01] [%clk 00:01:21]} Rac8 {[%emt 00:00:25] [%clk 00:01:09]}
28. Qc3 {[%emt 00:00:37] [%clk 00:00:54]} Nc6 {[%emt 00:00:24] [%clk 00:00:54]}
29. Qe3 {[%emt 00:00:06] [%clk 00:00:58]} b6 {[%emt 00:00:35] [%clk 00:00:30]}
30. g4 {[%emt 00:00:24] [%clk 00:00:43]} Kg7 {[%emt 00:00:12] [%clk 00:00:28]}
31. g5 {[%emt 00:00:13] [%clk 00:00:40]} fxg5 {[%emt 00:00:07] [%clk 00:00:31]}
32. Bf3 {[%emt 00:00:01] [%clk 00:00:49]} Qf6 {[%emt 00:00:07] [%clk 00:00:34]}
33. Rxd8 {[%emt 00:00:04] [%clk 00:00:55]} Nxd8 {[%emt 00:00:06] [%clk
00:00:39]} 34. Nd6 {[%emt 00:00:02] [%clk 00:01:02]} 1-0

[Site "Europe Echecs"]

[Event "Championnat d'Europe Rapide"]
[Date "2024.12.08"]
[White "Alonso Rosell, Alvar"]
[Black "Todorovic, Goran N"]
[WhiteElo "2532"]
[BlackElo "2256"]
[Round "7.33"]
[Result "1-0"]
[TimeControl "900+10"]

1. d4 {[%emt 00:00:02] [%clk 00:15:17]} e6 {[%emt 00:00:03] [%clk 00:15:18]} 2.
Nf3 {[%emt 00:00:03] [%clk 00:15:23]} f5 {[%emt 00:00:04] [%clk 00:15:23]} 3. e3
{[%emt 00:00:04] [%clk 00:15:29]} Nf6 {[%emt 00:00:02] [%clk 00:15:31]} 4. Be2
{[%emt 00:01:13] [%clk 00:14:27]} d5 {[%emt 00:00:36] [%clk 00:15:05]} 5. O-O
{[%emt 00:00:09] [%clk 00:14:28]} Bd6 {[%emt 00:00:01] [%clk 00:15:13]} 6. b3
{[%emt 00:00:18] [%clk 00:14:20]} Qe7 {[%emt 00:00:02] [%clk 00:15:20]} 7. Bb2
{[%emt 00:00:07] [%clk 00:14:24]} O-O {[%emt 00:00:05] [%clk 00:15:25]} 8. c4
{[%emt 00:00:27] [%clk 00:14:08]} c6 {[%emt 00:00:01] [%clk 00:15:33]} 9. Nbd2
{[%emt 00:00:02] [%clk 00:14:16]} Nbd7 {[%emt 00:00:07] [%clk 00:15:36]} 10. Ne5
{[%emt 00:00:17] [%clk 00:14:10]} Ne4 {[%emt 00:00:03] [%clk 00:15:42]} 11. f4
{[%emt 00:03:48] [%clk 00:10:32]} Nxd2 {[%emt 00:01:05] [%clk 00:14:46]} 12.
Qxd2 {[%emt 00:00:02] [%clk 00:10:41]} Nf6 {[%clk 00:14:55]} 13. a4 {[%emt
00:00:21] [%clk 00:10:31]} Bd7 {[%emt 00:00:04] [%clk 00:15:00]} 14. a5 {[%emt
00:00:19] [%clk 00:10:23]} a6 {[%emt 00:00:09] [%clk 00:15:00]} 15. Qc1 {[%emt
00:00:02] [%clk 00:10:31]} Be8 {[%emt 00:00:43] [%clk 00:14:28]} 16. Ba3 {[%emt
00:00:04] [%clk 00:10:38]} Bh5 {[%emt 00:00:42] [%clk 00:13:55]} 17. Bd3 {[%emt
00:01:49] [%clk 00:08:59]} Nd7 {[%emt 00:00:18] [%clk 00:13:47]} 18. Bxd6 {[%emt
00:00:21] [%clk 00:08:49]} Qxd6 {[%emt 00:00:02] [%clk 00:13:54]} 19. Qa3 {[%emt
00:00:04] [%clk 00:08:55]} Qxa3 {[%emt 00:00:02] [%clk 00:14:02]} 20. Rxa3
{[%emt 00:00:01] [%clk 00:09:04]} Nxe5 {[%emt 00:00:02] [%clk 00:14:10]} 21.
fxe5 {[%emt 00:00:02] [%clk 00:09:12]} Rac8 {[%emt 00:00:30] [%clk 00:13:50]}
22. Ra4 {[%emt 00:00:05] [%clk 00:09:18]} Rc7 {[%emt 00:00:07] [%clk 00:13:52]}
23. Rb4 {[%emt 00:00:06] [%clk 00:09:22]} Be8 {[%emt 00:03:07] [%clk 00:10:55]}
24. Rc1 {[%emt 00:02:21] [%clk 00:07:11]} Bd7 {[%emt 00:01:48] [%clk 00:09:16]}
25. cxd5 {[%emt 00:00:13] [%clk 00:07:09]} exd5 {[%emt 00:00:01] [%clk
00:09:24]} 26. Ra4 {[%emt 00:00:10] [%clk 00:07:09]} Be6 {[%emt 00:02:46] [%clk
00:06:48]} 27. Ra2 {[%emt 00:00:06] [%clk 00:07:15]} Rd7 {[%emt 00:00:38] [%clk
00:06:19]} 28. Rf2 {[%emt 00:00:04] [%clk 00:07:21]} g6 {[%emt 00:00:12] [%clk
00:06:17]} 29. g3 {[%emt 00:00:54] [%clk 00:06:38]} Rff7 {[%emt 00:00:06] [%clk
00:06:20]} 30. Kf1 {[%emt 00:00:02] [%clk 00:06:46]} Kf8 {[%emt 00:00:01] [%clk
00:06:29]} 31. Ke2 {[%emt 00:00:04] [%clk 00:06:52]} Ke8 {[%emt 00:00:02] [%clk
00:06:38]} 32. Kd2 {[%emt 00:00:28] [%clk 00:06:34]} Kd8 {[%emt 00:00:01] [%clk
00:06:46]} 33. Rcf1 {[%emt 00:00:11] [%clk 00:06:32]} Kc7 {[%emt 00:00:39] [%clk
00:06:17]} 34. Rf4 {[%emt 00:00:28] [%clk 00:06:15]} Rde7 {[%emt 00:00:40] [%clk
00:05:47]} 35. Rh4 {[%emt 00:00:04] [%clk 00:06:21]} h5 {[%emt 00:00:35] [%clk
00:05:22]} 36. Rhf4 {[%emt 00:00:02] [%clk 00:06:29]} Kd7 {[%emt 00:00:23] [%clk
00:05:08]} 37. Ke2 {[%emt 00:00:18] [%clk 00:06:22]} Ke8 {[%emt 00:00:08] [%clk
00:05:10]} 38. h3 {[%emt 00:00:10] [%clk 00:06:22]} Rh7 {[%emt 00:00:47] [%clk
00:04:32]} 39. g4 {[%emt 00:00:56] [%clk 00:05:37]} hxg4 {[%emt 00:00:08] [%clk
00:04:34]} 40. hxg4 {[%emt 00:00:04] [%clk 00:05:44]} Rh2+ {[%emt 00:00:13]
[%clk 00:04:30]} 41. R1f2 {[%emt 00:01:32] [%clk 00:04:23]} Rxf2+ {[%emt
00:00:03] [%clk 00:04:36]} 42. Kxf2 {[%emt 00:00:17] [%clk 00:04:16]} fxg4
{[%emt 00:00:03] [%clk 00:04:42]} 43. Bxg6+ {[%emt 00:00:05] [%clk 00:04:22]}
Kd7 {[%clk 00:04:51]} 44. Kg3 {[%emt 00:00:11] [%clk 00:04:21]} c5 {[%emt
00:02:39] [%clk 00:02:22]} 45. dxc5 {[%emt 00:00:23] [%clk 00:04:09]} Kc6 {[%emt
00:00:01] [%clk 00:02:31]} 46. b4 {[%emt 00:00:31] [%clk 00:03:48]} Bd7 {[%emt
00:00:04] [%clk 00:02:36]} 47. Rf6+ {[%emt 00:00:25] [%clk 00:03:33]} Kb5 {[%emt
00:00:01] [%clk 00:02:44]} 48. Rb6+ {[%emt 00:00:04] [%clk 00:03:41]} Kc4 {[%emt
00:00:03] [%clk 00:02:47]} 49. Rxb7 {[%emt 00:00:08] [%clk 00:03:46]} 1-0

[Site "Europe Echecs"]